Cogmind - Beta 15 @@@ ROGUE MODE // 2025.07.27 @ 14:18:07 Player: f3-rnm Result: Destroyed by Executioner with Helical Railgun Performance ------------- Evolutions (5) 2500 Regions Visited (19) 3800 Robots Destroyed (204) 1020 Value Destroyed (7591) 7591 Prototype IDs (29) 580 Alien Tech Used (0) 0 Bonus (3819) 3819 TOTAL SCORE: 19310 Bonus ------- High Alert Combat Kills 1014 Follower Combat Kills 920 Entered Garrisons 400 Met Data Miner 300 Acquired ECA 300 Met Warlord at Base 500 MAIN.C Attacked Warlord 500 Warlord Defense Kills 762 Friendly Fire -877 Cogmind --------- Core Integrity 0/1000 Matter 300/300 Energy 57/100 System Corruption 4% Temperature Cool (9) Movement Hovering (50) Location -5/Warlord Parts ------- > --- POWER (1) -------- (None) > --- PROPULSION (7) --- Cooled Gravmag System > --- UTILITY (7) ------ Machine Analyzer Spectral Analyzer Advanced Launcher Guidance Computer Advanced Hacking Suite Advanced Hacking Suite > --- WEAPON (2) ------- (None) > --- INVENTORY (5) ---- Guided EMP Blaster Chain Missile Launcher Peak State ------------ > --- POWER ------------ Light Angular Momentum Engine > --- PROPULSION ------- Cooled Gravmag System Combat Gravmag System Cooled Antigrav System Cooled Antigrav System Combat Linear Gravjet Combat Linear Gravjet Combat Linear Gravjet > --- UTILITY ---------- High-capacity Storage Unit Machine Analyzer Spectral Analyzer Launcher Guidance Computer Experimental Shock Absorption System Advanced Hacking Suite Advanced Hacking Suite > --- WEAPON ----------- Plasma Lance > --- INVENTORY -------- Vortex Chain Reactor Energy Well High-capacity Matter Pod Particle Charger Microactuators Transmission Jammer Propulsion Shielding Thermal Barrier Ghost Barrier Authchip [Propulsion] Mini Drone Bay Dimensional Node Initializer Cooled Particle Cannon Guided EMP Blaster Long-range Missile Launcher Chain Missile Launcher [Rating: 122] Favorites ----------- Power Light Nuclear Core Engine Cooled Deuterium Engine Power Core Light Nuclear Core Propulsion Combat Airjet Treads Light Treads Leg Experimental Myomer Leg Wheel Compact Wheel Hover Unit Combat Airjet Flight Unit VTOL Module Utility Launcher Guidance Computer Device Improved Sensor Array Storage Large Storage Unit Processor Launcher Guidance Computer Hackware Advanced Hacking Suite Protection Hardened Light Armor Plating Weapon Chainsword Energy Gun Spread Laser Energy Cannon Cooled Particle Cannon Ballistic Gun Shotgun Ballistic Cannon Assault Cannon Launcher Improved Grenade Launcher Special Weapon Plasma Cutter Impact Weapon Hammer Slashing Weapon Chainsword Piercing Weapon Lance Build | -11 -10 -9 -8 -8 -8 -7 -7 -7 -6 -6 -6 -6 -5 -5 -5 -5 -5 -5 -5 ------- Run | Yrd Mat Mat Mat Gar Mat Fac Was Fac Fac Low Low Dat Pro Fac Gar Fac Upp Upp War Slots Evolved 10 | . . 2 2 . . 2 . . 2 . . . . 2 . . . . . Power . | . . . . . . . . . . . . . . . . . . . . Propulsion 5 | . . . 2 . . 1 . . . . . . . 2 . . . . . Utility 5 | . . 2 . . . 1 . . 2 . . . . . . . . . . Weapon . | . . . . . . . . . . . . . . . . . . . . Parts Attached 148 | 5 3 12 12 20 8 13 3 9 12 . . . . 8 9 12 2 2 18 Power 21 | 1 . 1 2 5 1 1 1 2 1 . . . . . 2 1 1 1 1 Engine 11 | 1 . 1 1 3 1 . . 1 1 . . . . . . . 1 . 1 Core 10 | . . . 1 2 . 1 1 1 . . . . . . 2 1 . 1 . Reactor . | . . . . . . . . . . . . . . . . . . . . Propulsion 36 | 2 1 2 3 5 1 3 . 3 1 . . . . 2 2 3 . 1 7 Treads 7 | 2 1 2 2 . . . . . . . . . . . . . . . . Leg 1 | . . . . . . . . . . . . . . . . . . . 1 Wheel 3 | . . . 1 1 . . . . . . . . . . . . . 1 . Hover 24 | . . . . 4 1 3 . 3 1 . . . . 2 2 3 . . 5 Flight 1 | . . . . . . . . . . . . . . . . . . . 1 Utility 52 | 1 1 3 5 4 1 2 1 4 8 . . . . 6 3 4 1 . 8 Device 18 | . 1 . 3 . . 1 . 1 2 . . . . 1 . 3 1 . 5 Storage 6 | 1 . 1 1 . . . . 1 . . . . . 1 . 1 . . . Processor 8 | . . . 1 1 . 1 . . 2 . . . . . 1 . . . 2 Hackware 7 | . . . . . . . . . 2 . . . . 3 1 . . . 1 Protection 13 | . . 2 . 3 1 . 1 2 2 . . . . 1 1 . . . . Artifact . | . . . . . . . . . . . . . . . . . . . . Weapon 39 | 1 1 6 2 6 5 7 1 . 2 . . . . . 2 4 . . 2 Energy Gun 6 | . . 1 2 1 . 1 . . 1 . . . . . . . . . . Energy Cannon 1 | . . . . . . 1 . . . . . . . . . . . . . Ballistic Gun 8 | 1 1 3 . . . 1 . . . . . . . . . 2 . . . Ballistic Cannon 5 | . . . . 2 1 . . . . . . . . . 1 1 . . . Launcher 13 | . . 1 . 2 4 3 . . 1 . . . . . 1 1 . . . Special Weapon 1 | . . . . 1 . . . . . . . . . . . . . . . Impact Weapon 1 | . . 1 . . . . . . . . . . . . . . . . . Slashing Weapon 2 | . . . . . . 1 1 . . . . . . . . . . . . Piercing Weapon 2 | . . . . . . . . . . . . . . . . . . . 2 Special Melee Weapon . | . . . . . . . . . . . . . . . . . . . . Unidentified Prototypes 19 | . . 1 . . . 3 1 2 2 . . . . . . 3 . . 7 Corrupted Parts 1 | . . . . . . . . . . . . . . . 1 . . . . System Corruption 8 | . . . . . . . . . . . . . . . 8 . . . . Parts Lost 47 | . . . 9 11 . . . 1 5 . . . 1 1 8 3 1 5 2 Power 9 | . . . 2 4 . . . 1 . . . . . . 2 . . . . Propulsion 16 | . . . 3 2 . . . . 1 . . . . . 4 1 1 4 . Utility 10 | . . . 1 1 . . . . 2 . . . 1 1 1 2 . . 1 Weapon 12 | . . . 3 4 . . . . 2 . . . . . 1 . . 1 1 Highest Loss Streak 6 | . . . 5 6 . . . 1 2 . . . 1 1 3 1 1 3 1 To Critical Strikes . | . . . . . . . . . . . . . . . . . . . . Average Backups 15 | 1 5 11 14 17 15 14 15 14 14 13 14 15 14 15 17 17 18 17 16 Power . | . 1 1 1 . 1 1 1 . . . . . . . . . 1 1 1 Propulsion 2 | . 2 3 1 3 3 3 3 2 2 2 2 2 2 2 2 . . . . Utility 8 | . . 2 5 10 7 5 6 8 8 8 9 10 9 10 11 11 11 11 10 Weapon 3 | . 1 4 5 3 4 4 5 4 3 2 2 2 2 2 3 5 5 4 3 Tool/Special . | . . . . . . . . . . . . . . . . . . . . Unused Backups 52 | . . 2 1 11 6 7 1 5 2 . . . . 3 . 1 1 . 12 Power 8 | . . . 1 2 . 1 . 1 1 . . . . . . 1 . . 1 Propulsion 1 | . . . . . . . 1 . . . . . . . . . . . . Utility 31 | . . . . 8 3 2 . 4 1 . . . . 3 . . 1 . 9 Weapon 11 | . . 2 . 1 3 4 . . . . . . . . . . . . 1 Tool/Special 1 | . . . . . . . . . . . . . . . . . . . 1 Average Slot Usage (%) 91 | . 79 99 90 90 98 99 100 99 97 90 93 93 92 84 88 85 95 70 81 Engine 4 | . 14 11 6 5 1 4 . 2 2 6 6 6 6 5 2 . . . . Core 2 | . . . 2 3 7 2 7 3 3 . . . . . 1 5 4 4 4 Treads 3 | . 28 22 27 . . . . . . . . . . . . . . . . Hover 25 | . . . . 28 33 38 38 38 31 26 26 26 26 27 33 34 36 19 21 Device 6 | . 2 11 9 10 9 7 7 7 6 3 6 6 6 3 1 1 5 5 4 Storage 7 | . 14 11 9 9 9 7 7 7 6 6 6 6 6 5 5 5 5 5 5 Processor 13 | . . . 6 9 9 14 15 15 20 20 20 20 20 17 19 23 23 23 18 Hackware 3 | . . . . . . . . . 5 6 6 6 6 6 8 5 5 5 9 Protection 6 | . . 21 9 7 9 7 7 7 5 6 6 6 5 4 3 2 . . . Ballistic Gun 3 | . 19 18 4 . . . . . . . . . . . . . 11 1 . Ballistic Cannon 1 | . . . . 6 7 . . . . . . . . . 1 . . . . Launcher 4 | . . . . 3 6 8 9 3 6 12 13 13 13 6 1 . . . 1 Slashing Weapon 2 | . . . . . . 4 4 11 5 . . . . 3 2 3 . . . Peak Build Rating 122 | 5 8 17 21 47 46 54 57 57 66 67 67 67 67 85 94 98 98 93 122 Average Rating 54 | 4 5 15 18 37 42 51 53 55 62 65 67 67 66 72 86 80 93 69 87 On Entrance 51 | . 5 8 17 15 30 42 53 53 54 63 67 67 67 67 84 73 98 93 64 Naked Turns . | . . . . . . . . . . . . . . . . . . . . Heaviest Build 102 | 10 13 44 85 102 100 46 52 49 52 53 53 53 53 69 83 79 60 60 58 Greatest Support 85 | 40 40 40 80 48 48 60 57 57 54 53 53 53 53 75 85 80 68 68 79 Greatest Overweight (x) 8 | 1 . 1 8 8 6 . . . 1 . . . . . 2 1 . 1 3 Average Overweight (x) . | . . . . . . . . . . . . . . . . . . . . Largest Inventory Capacity 25 | 8 8 15 25 25 25 15 15 15 15 15 15 15 15 20 20 20 20 20 20 Average Capacity 16 | 7 8 12 15 19 15 15 15 15 15 15 15 15 15 16 20 20 20 20 20 Most Carried 25 | 2 8 15 16 25 25 15 15 15 15 14 15 15 15 20 20 20 20 20 20 Average Carried 15 | 1 5 11 14 17 15 14 14 14 14 13 14 15 14 15 18 19 19 19 19 Final Capacity 25 | 8 8 15 25 25 15 15 15 15 15 15 15 15 15 20 20 20 20 20 5 Final Carried 25 | 2 8 15 16 25 15 15 15 15 13 13 15 15 14 20 17 19 20 19 4 Class Distribution -------------------- 48% | Scavenger-Mutant 33% | Mutant 11% | Hacker-Mutant 5% | Scavenger-Scout Dominant Class ---------------- Mutant | -10/Materials Mutant | -9/Materials Mutant | -8/Materials Scavenger-Mutant | -8/Garrison Scavenger-Mutant | -8/Materials Scavenger-Mutant | -7/Factory Scavenger-Mutant | -7/Waste Scavenger-Mutant | -7/Factory Scavenger-Scout | -6/Factory Scavenger-Mutant | -6/Lower Caves Scavenger-Mutant | -6/Lower Caves Scavenger-Mutant | -6/Data Miner Scavenger-Mutant | -5/Proximity Caves Scavenger-Mutant | -5/Factory Hacker-Mutant | -5/Garrison Mutant | -5/Factory Mutant | -5/Upper Caves Mutant | -5/Upper Caves Hacker-Mutant | -5/Warlord Resources | -11 -10 -9 -8 -8 -8 -7 -7 -7 -6 -6 -6 -6 -5 -5 -5 -5 -5 -5 -5 ----------- Run | Yrd Mat Mat Mat Gar Mat Fac Was Fac Fac Low Low Dat Pro Fac Gar Fac Upp Upp War Matter Collected 6420 | 236 83 405 252 1151 376 721 2 489 390 155 104 . 116 105 444 508 151 32 700 Remotely 51 | . . . . . . . . . . . . . . . . . . . 51 Salvage Created 5641 | . 219 523 459 740 408 590 . 525 416 140 . . 125 298 289 502 52 85 270 Parts 334 | . 14 38 30 62 15 35 . 36 21 2 . . 7 19 18 20 1 8 8 Haulers Intercepted 7 | . . 2 . . 1 1 . 1 1 . . . . . . 1 . . . Recyclers Shooed 2 | . . . . . . . . . 2 . . . . . . . . . . Parts Field Recycled . | . . . . . . . . . . . . . . . . . . . . Retrieved Matter . | . . . . . . . . . . . . . . . . . . . . Parts Self-Destructed 10 | . . . . . . . . . . . . . 6 . . . . 4 . Prevented . | . . . . . . . . . . . . . . . . . . . . Kills | -11 -10 -9 -8 -8 -8 -7 -7 -7 -6 -6 -6 -6 -5 -5 -5 -5 -5 -5 -5 ------- Run | Yrd Mat Mat Mat Gar Mat Fac Was Fac Fac Low Low Dat Pro Fac Gar Fac Upp Upp War Combat Hostiles Destroyed 160 | . 5 17 13 33 13 10 . 8 9 1 . . 5 6 20 3 . 10 7 Melee 7 | . . . . 4 . . . 1 . . . . . . 1 1 . . . Guns 31 | . 5 14 11 . . . . . . . . . . . . . . 1 . Cannons 10 | . . . . 5 2 . . . . . . . . . 3 . . . . AOE 111 | . . 3 2 23 11 10 . 7 9 1 . . 5 6 16 2 . 9 7 Classes Destroyed 19 | . 2 4 2 3 1 . . 2 1 . . . 1 . . . 1 . 2 Worker 15 | . . 1 . . 2 5 . 1 3 . . . . 1 . 2 . . . Builder 6 | . . . 1 . . . . 2 1 . . . . 1 . 1 . . . Tunneler 1 | . . . . . . . . 1 . . . . . . . . . . . Hauler 7 | . . 2 . . 1 1 . 1 1 . . . . . . 1 . . . Recycler 12 | . . . 1 . . 3 . 4 1 . . . . 1 . 2 . . . Operator 1 | . 1 . . . . . . . . . . . . . . . . . . Drone 1 | . . . . . . . . . . . . . 1 . . . . . . Watcher 1 | . . . . . . . . 1 . . . . . . . . . . . Swarmer 68 | . . 7 3 14 . 3 . 4 7 . . . 1 4 14 1 . 10 . Saboteur 3 | . . . . 3 . . . . . . . . . . . . . . . Grunt 53 | . 5 5 10 5 11 4 . 2 . . . . 1 . 4 . . . 6 Brawler 1 | . . . . . 1 . . . . . . . . . . . . . . Duelist 1 | . . . . 1 . . . . . . . . . . . . . . . Protector 1 | . . . . . . . . . . . . . . . . . . . 1 Sentry 16 | . . 5 . 6 1 1 . 1 . . . . . . 2 . . . . Hunter 10 | . . . . 4 . 2 . 1 . 1 . . 2 . . . . . . Programmer 6 | . . . . . . . . . 2 . . . . 2 . 2 . . . Enhanced Demolisher 1 | . . . . . . . . . . . . . . . . . . . 1 Packrat 2 | . . . . . . . . . . 2 . . . . . . . . . Samaritan 1 | . . . . . . . . . . . . . . . . . 1 . . Best Kill Streak 13 | . 3 4 10 5 12 7 . 13 6 1 . . 3 4 10 5 . 5 7 Combat Bots Only 11 | . 2 4 10 5 11 7 . 6 4 1 . . 3 4 10 2 . 5 7 Max Kills in Single Turn 6 | . 1 2 2 3 3 3 . 6 3 1 . . 1 3 4 3 1 3 3 Gunslinging 1 | . . 1 . . . . . . . . . . . . . . . . . Exploded 4 | . . 2 2 3 3 3 . 3 3 1 . . 1 3 4 2 . 3 3 Melee 1 | . . . . 1 . . . 1 . . . . . . 1 1 . . . Uniques/NPCs Destroyed . | . . . . . . . . . . . . . . . . . . . . Combat | -11 -10 -9 -8 -8 -8 -7 -7 -7 -6 -6 -6 -6 -5 -5 -5 -5 -5 -5 -5 -------- Run | Yrd Mat Mat Mat Gar Mat Fac Was Fac Fac Low Low Dat Pro Fac Gar Fac Upp Upp War Hostile Shots Fired 976 | . 25 88 94 115 40 60 . 95 115 6 . . 14 24 159 58 21 23 39 Missed 387 | . 6 30 24 37 16 36 . 43 57 4 . . 5 9 65 27 10 4 14 Hits 589 | . 19 58 70 78 24 24 . 52 58 2 . . 9 15 94 31 11 19 25 Melee 9 | . . . . 5 . . . . . . . . . . . 1 . . 3 Projectile 580 | . 19 58 70 73 24 24 . 52 58 2 . . 9 15 94 30 11 19 22 AOE 2 | . . . . . . . . . . . . . . . . 2 . . . Critical Strikes 15 | . . 1 4 3 1 . . . . . . . . . 2 3 . . 1 Part Disruptions 1 | . . . . . . . . . . . . . . . . . . . 1 Damage Taken 9717 | . 240 704 1008 1329 393 299 . 654 642 77 . . 214 305 2016 657 247 325 607 Core 1974 | . 54 79 125 278 120 33 . 67 106 33 . . 55 51 357 168 . 94 354 Absorbed by Shields 22 | . . . . . . . . . . . . . . . 15 7 . . . Redirected to Shielding 109 | . . . . . . . . . . . . . . 45 64 . . . . Ignored by Resistances 33 | . . . . . . . . . 33 . . . . . . . . . . Regen/Repaired (Parts) 302 | . . . . . . . 81 . 22 . . . . . . . . . 199 Core Remaining (%) 70 | 100 78 80 . . 4 . . 85 . . . . 77 . . . . . . Volleys Fired 321 | . 27 38 26 100 19 10 1 6 12 4 . . 11 5 33 6 3 8 12 Largest 2 | . 2 2 2 2 2 2 1 2 2 2 . . 2 2 1 2 2 2 1 Hottest 130 | . 40 88 130 74 74 75 36 75 72 75 . . 75 75 90 70 60 60 50 Shots Fired 461 | . 40 74 50 128 38 14 1 9 14 7 . . 15 6 33 7 5 8 12 Gun 220 | . 40 72 49 49 . . . . . . . . . . . 2 5 3 . Cannon 78 | . . . . 42 18 . . . . . . . . . 13 5 . . . Launcher 163 | . . 2 1 37 20 14 1 9 14 7 . . 15 6 20 . . 5 12 Special . | . . . . . . . . . . . . . . . . . . . . Kinetic 228 | . 40 57 1 91 18 . . . . . . . . . 6 7 5 3 . Thermal 70 | . . 15 48 . . . . . . . . . . . 7 . . . . Explosive 161 | . . 2 1 37 20 14 1 9 14 7 . . 15 6 20 . . 5 10 Electromagnetic 2 | . . . . . . . . . . . . . . . . . . . 2 Robot Hit Streak 22 | . 6 14 17 22 5 9 . 12 18 5 . . 9 4 6 7 1 2 5 Robot Miss Streak 4 | . 2 4 4 2 3 1 . . 1 1 . . 2 . 1 . 1 1 2 Penetration Max . | . . . . . . . . . . . . . . . . . . . . Secondary Targets 5 | . 1 2 2 . . . . . . . . . . . . . . . . Max Gunslinging Chain 1 | . 1 1 1 . . . . . . . . . . . . . . . . Shots Hit Robots 359 | . 21 59 47 91 25 21 . 14 20 5 . . 5 6 23 9 1 3 9 Core Hits 404 | . 12 47 87 60 30 22 . 22 20 5 . . 8 11 30 8 2 13 27 Critical Kills 2 | . . . . 1 . . . . . . . . . . . . . 1 . Critical Parts Destroyed 1 | . . . . 1 . . . . . . . . . . . . . . . Critical Strikes 10 | . . . . 4 1 . . 1 1 . . . . . 1 . . 1 1 Destroy 2 | . . . . 1 . . . . . . . . . . . . . 1 . Blast 4 | . . . . 2 1 . . . . . . . . . 1 . . . . Smash 1 | . . . . 1 . . . . . . . . . . . . . . . Sever 2 | . . . . . . . . 1 1 . . . . . . . . . . Impale 1 | . . . . . . . . . . . . . . . . . . . 1 Melee Attacks 143 | . . 3 1 14 5 15 1 21 27 . . . . 14 14 23 . . 5 Impact 23 | . . 3 1 14 5 . . . . . . . . . . . . . . Slashing 115 | . . . . . . 15 1 21 27 . . . . 14 14 23 . . . Piercing 5 | . . . . . . . . . . . . . . . . . . . 5 Sneak Attacks 31 | . . . . . 1 10 . 5 6 . . . . 2 . 3 . . 4 Combat Hostiles . | . . . . . . . . . . . . . . . . . . . . Follow-up Attacks 3 | . . . . . . . . 1 2 . . . . . . . . . . Damage Inflicted 20870 | . 280 1061 886 3369 1439 1805 . 1872 1579 444 . . 674 654 2854 1020 56 1013 1864 Guns 2668 | . 280 866 767 669 . . . . . . . . . . . . 56 30 . Cannons 1395 | . . . . 642 306 . . . . . . . . . 376 71 . . . Explosions 13500 | . . 195 111 1940 1086 1018 . 1320 836 444 . . 674 498 2344 510 . 983 1541 Melee 3279 | . . . . 118 47 787 . 552 734 . . . . 156 134 428 . . 323 Ramming 28 | . . . 8 . . . . . 9 . . . . . . 11 . . . Kinetic 3030 | . 280 668 14 1311 306 . . . . . . . . . 294 71 56 30 . Thermal 2332 | . . 198 753 . . . . 705 . . . . . . 82 510 . . 84 Explosive 12055 | . . 195 111 1940 1086 1018 . 615 836 444 . . 674 498 2344 . . 983 1311 Electromagnetic 146 | . . . . . . . . . . . . . . . . . . . 146 Impact 165 | . . . . 118 47 . . . . . . . . . . . . . . Slashing 2791 | . . . . . . 787 . 552 734 . . . . 156 134 428 . . . Piercing 323 | . . . . . . . . . . . . . . . . . . . 323 Highest Corruption 16 | . . . . . 1 . 15 16 . . . . . 1 9 14 14 14 14 Average Corruption 8 | . . . . . 1 . 9 15 . . . . . 1 1 11 14 14 2 Corruption Purged . | . . . . . . . . . . . . . . . . . . . . Corruption Blocked . | . . . . . . . . . . . . . . . . . . . . Effects 89 | . . . . . . . 3 40 . . . . . 3 3 19 11 9 1 Message Errors 18 | . . . . . . . 1 7 . . . . . 1 1 2 4 2 . Matter Fused 15 | . . . . . . . 1 8 . . . . . . . 4 1 1 . Heat Flow Errors 10 | . . . . . . . 1 5 . . . . . 1 . 2 . 1 . Energy Discharges 10 | . . . . . . . . 6 . . . . . . . 2 2 . . Parts Rejected 2 | . . . . . . . . . . . . . . . . 2 . . . Data Loss (minor) 16 | . . . . . . . . 5 . . . . . . 1 3 3 3 1 Data Loss (major) 2 | . . . . . . . . 1 . . . . . . . . . 1 . Alerts 5 | . . . . . . . . 3 . . . . . 1 1 . . . . Misdirections 8 | . . . . . . . . 4 . . . . . . . 4 . . . Weapon Failures 3 | . . . . . . . . 1 . . . . . . . . 1 1 . Overload Shots 1 | . . . . . . . . . . . . . . . 1 . . . . Overflow Damage 1369 | . . . . 109 . 187 . 156 235 101 . . 26 79 192 204 . 62 18 Projectiles 32 | . . . . 32 . . . . . . . . . . . . . . . Explosions 732 | . . . . 67 . 29 . 64 52 101 . . 26 3 141 169 . 62 18 Melee 605 | . . . . 10 . 158 . 92 183 . . . . 76 51 35 . . . Knockbacks 6 | . . . . 5 . . . . . . . . . . . 1 . . . Impact 1 | . . . . . . . . . . . . . . . . 1 . . . Kinetic 5 | . . . . 5 . . . . . . . . . . . . . . . Secondary . | . . . . . . . . . . . . . . . . . . . . Self-Inflicted Damage 530 | . . . 44 145 11 . . 47 30 42 . . 33 . 115 5 . 58 . Shots 23 | . . . 1 6 2 . . 1 2 2 . . 1 . 5 . . 3 . Rammed 4 | . . . 1 . . . . . 1 . . . . . . 2 . . . Targets Rammed 4 | . . . 1 . . . . . 1 . . . . . . 2 . . . Kicked . | . . . . . . . . . . . . . . . . . . . . Crushed . | . . . . . . . . . . . . . . . . . . . . Highest Temperature 275 | . . 102 216 7 18 21 212 231 6 1 . . 1 231 41 275 . 255 202 Average Temperature 75 | . . 38 104 7 9 11 91 79 3 1 . . 1 126 10 83 . 143 77 Received Heat Transfer 2325 | . 138 219 486 216 198 60 . 129 102 . . . 18 72 474 69 36 . 108 Effects 1 | . . . . . . . . . . . . . . . . . . 1 . Energy Bleed 1 | . . . . . . . . . . . . . . . . . . 1 . Siege Activations . | . . . . . . . . . . . . . . . . . . . . Martial Activations . | . . . . . . . . . . . . . . . . . . . . Shielding Activations . | . . . . . . . . . . . . . . . . . . . . Robots Disrupted . | . . . . . . . . . . . . . . . . . . . . Combat Hostiles . | . . . . . . . . . . . . . . . . . . . . Robots Corrupted 1 | . . . . 1 . . . . . . . . . . . . . . . Combat Hostiles 1 | . . . . 1 . . . . . . . . . . . . . . . Parts Fried 1 | . . . . 1 . . . . . . . . . . . . . . . Impact Corruptions 1 | . . . . 1 . . . . . . . . . . . . . . . Robots Melted . | . . . . . . . . . . . . . . . . . . . . Combat Hostiles . | . . . . . . . . . . . . . . . . . . . . Parts Melted . | . . . . . . . . . . . . . . . . . . . . Heat Transferred 2076 | . . 240 925 . . . . 450 . . . . . . 111 300 . . 50 Parts Sabotaged 13 | . . . . 4 . . . . . . . . . . . . . . 9 Parts Stolen . | . . . . . . . . . . . . . . . . . . . . Parts Stripped . | . . . . . . . . . . . . . . . . . . . . Power Chain Reactions 1 | . . . . . . . . . . . . . . . . . . . 1 Alert | -11 -10 -9 -8 -8 -8 -7 -7 -7 -6 -6 -6 -6 -5 -5 -5 -5 -5 -5 -5 ------- Run | Yrd Mat Mat Mat Gar Mat Fac Was Fac Fac Low Low Dat Pro Fac Gar Fac Upp Upp War Maximum Alert Level 4 | . . . . 4 3 2 . 2 2 . . . . 1 4 4 . . . Low Security (%) 45 | 100 100 100 100 14 . . 100 74 7 . . . . 99 4 . . . . Level 1 16 | . . . . 8 . 87 . 1 50 . . . . . 10 . . . . Level 2 16 | . . . . 8 43 12 . 23 42 . . . . . 43 43 . . . Level 3 12 | . . . . 21 56 . . . . . . . . . 40 51 . . . Level 4 9 | . . . . 46 . . . . . . . . . . . 5 . . . Level 5 . | . . . . . . . . . . . . . . . . . . . . High Security . | . . . . . . . . . . . . . . . . . . . . Max Security . | . . . . . . . . . . . . . . . . . . . . Peak Influence 1351 | . 80 184 191 1351 984 444 149 658 459 . . . . 201 1170 1109 . . . Initial 658 | . . 20 62 85 658 422 149 . 305 . . . . 150 136 613 . . . Average 398 | . 22 85 57 854 816 329 102 156 353 . . . . 122 573 817 . . . Influence Increases 8224 | . 150 479 341 1436 462 384 27 894 533 60 . . 120 603 1114 720 30 220 651 Destroy 0b10 Robot/C 3580 | . 100 340 260 800 260 200 . 160 180 20 . . 80 120 400 60 . 200 400 Destroy 0b10 Robot/NC 250 | . 5 15 10 25 15 45 . 50 30 . . . 5 15 . 30 . . 5 Destroy Leader 486 | . 30 94 50 20 62 42 . 34 42 10 . . 20 20 30 12 . 20 . Allied During Kill 185 | . . . . 29 . . . . . . . . . . . . . . 156 Successful Hack 61 | . . . . 7 8 . . 20 17 . . . . 9 . . . . . Disable Machine 525 | . . . 15 15 45 . . 180 30 . . . . . 15 225 . . . Anti-Garrison Action 550 | . . . . 300 . . . . . . . . . . 250 . . . . Destroy Structure 1042 | . . 15 6 195 42 52 27 120 69 . . . . 124 284 108 . . . Advance Influence 150 | . . . . . . . . . . . . . . 150 . . . . . Partial Spotted 240 | . . . . 15 15 30 . 45 30 . . . . 60 . 45 . . . Lose Combat Pursuer 1155 | . 15 15 . 30 15 15 . 285 135 30 . . 15 105 135 240 30 . 90 Influence Decreases 7865 | . 100 380 359 216 883 888 453 270 979 157 81 . 120 408 139 785 560 270 817 Entered New Map 3705 | . . 30 87 46 693 508 277 . 319 67 17 . . . 59 557 410 110 525 Time Decay 3038 | . 100 350 182 . 190 380 70 250 310 90 64 . 110 322 . 198 140 110 172 Lost Part 470 | . . . 90 110 . . . 10 50 . . . 10 10 80 30 10 50 20 Lost Ally 276 | . . . . 60 . . 106 10 . . . . . . . . . . 100 Purge Threat 376 | . . . . . . . . . 300 . . . . 76 . . . . . Squads Dispatched 45 | . 2 2 5 . 3 6 . 8 6 . . . . 6 . 7 . . . Investigation 21 | . . 2 3 . 1 4 . 3 3 . . . . 2 . 3 . . . Extermination 9 | . . . . . . 1 . 3 2 . . . . 2 . 1 . . . Reinforcement 10 | . 2 . . . 2 1 . 1 1 . . . . 2 . 1 . . . Assault 3 | . . . . . . . . 1 . . . . . . . 2 . . . Garrison 2 | . . . 2 . . . . . . . . . . . . . . . . Intercept . | . . . . . . . . . . . . . . . . . . . . Searches Triggered . | . . . . . . . . . . . . . . . . . . . . Data Miner Redirects 2 | . . . . . . . . . . . . . . 1 . 1 . . . Construction Impeded 1 | . . . . . 1 . . . . . . . . . . . . . . Haulers Reinforced 2 | . . . . . . 1 . . 1 . . . . . . . . . . Active Scanning Responses . | . . . . . . . . . . . . . . . . . . . . Cargo Convoy Interrupts . | . . . . . . . . . . . . . . . . . . . . Stealth | -11 -10 -9 -8 -8 -8 -7 -7 -7 -6 -6 -6 -6 -5 -5 -5 -5 -5 -5 -5 --------- Run | Yrd Mat Mat Mat Gar Mat Fac Was Fac Fac Low Low Dat Pro Fac Gar Fac Upp Upp War Distress Signals 9 | . 2 2 . . 3 1 . 1 . . . . . . . . . . . Communications Jammed . | . . . . . . . . . . . . . . . . . . . . Distress Signals . | . . . . . . . . . . . . . . . . . . . . Times Spotted 335 | . 7 26 16 29 19 13 6 29 21 3 . . 8 14 35 27 2 10 70 Peak Tracking Total 19 | . 3 5 7 5 10 4 4 10 6 2 . . 4 6 12 11 1 5 19 Tactical Retreats 41 | . 1 1 . 1 1 1 . 11 5 1 . . 1 3 5 5 2 . 3 Traps | -11 -10 -9 -8 -8 -8 -7 -7 -7 -6 -6 -6 -6 -5 -5 -5 -5 -5 -5 -5 ------- Run | Yrd Mat Mat Mat Gar Mat Fac Was Fac Fac Low Low Dat Pro Fac Gar Fac Upp Upp War Traps Triggered 17 | . . 1 . 6 1 2 . 1 . . . . . . 1 4 . . 1 Indirectly . | . . . . . . . . . . . . . . . . . . . . Trap Hack Attempts . | . . . . . . . . . . . . . . . . . . . . Triggered . | . . . . . . . . . . . . . . . . . . . . Disarmed . | . . . . . . . . . . . . . . . . . . . . Reprogrammed . | . . . . . . . . . . . . . . . . . . . . Reused . | . . . . . . . . . . . . . . . . . . . . Traps Extracted . | . . . . . . . . . . . . . . . . . . . . Installed . | . . . . . . . . . . . . . . . . . . . . Triggered . | . . . . . . . . . . . . . . . . . . . . Machines | -11 -10 -9 -8 -8 -8 -7 -7 -7 -6 -6 -6 -6 -5 -5 -5 -5 -5 -5 -5 ---------- Run | Yrd Mat Mat Mat Gar Mat Fac Was Fac Fac Low Low Dat Pro Fac Gar Fac Upp Upp War Machines Disabled 46 | . . . 1 5 3 . . 12 2 . . . . . 5 15 . 1 2 Max in Single Turn 12 | . . . 1 1 1 . . 7 1 . . . . . 1 12 . 1 2 Garrison Relay 5 | . . . . 4 . . . . . . . . . . 1 . . . . Phase Generator 1 | . . . . . . . . . . . . . . . 1 . . . . Machines Repaired . | . . . . . . . . . . . . . . . . . . . . Machines Dismantled 2 | . . . . 2 . . . . . . . . . . . . . . . Machines Sabotaged . | . . . . . . . . . . . . . . . . . . . . Overloaded Fab Kills . | . . . . . . . . . . . . . . . . . . . . Hacking | -11 -10 -9 -8 -8 -8 -7 -7 -7 -6 -6 -6 -6 -5 -5 -5 -5 -5 -5 -5 --------- Run | Yrd Mat Mat Mat Gar Mat Fac Was Fac Fac Low Low Dat Pro Fac Gar Fac Upp Upp War Machines Accessed 52 | . . 4 4 2 4 5 . 8 7 . 2 4 . 7 1 3 . . 1 Terminals 31 | . . 4 3 2 3 5 . 5 5 . . . . 2 1 1 . . . Fabricators 4 | . . . . . . . . . . . . . . 3 . 1 . . . Repair Stations 4 | . . . . . . . . 2 2 . . . . . . . . . . Recycling Units 1 | . . . . . . . . . . . . . . . . 1 . . . Scanalyzers . | . . . . . . . . . . . . . . . . . . . . Garrison Access 5 | . . . 1 . 1 . . 1 . . . . . 2 . . . . . Total Hacks 138 | . . 8 9 4 9 12 . 16 14 . 8 30 . 18 3 6 . . 1 Successful 74 | . . 1 1 2 3 . . 4 7 . 8 30 . 13 1 3 . . 1 Failed 64 | . . 7 8 2 6 12 . 12 7 . . . . 5 2 3 . . . Catastrophic 20 | . . 2 3 . 1 7 . 4 1 . . . . 1 . 1 . . . Database Lockouts . | . . . . . . . . . . . . . . . . . . . . Manual 55 | . . 8 8 . 7 11 . 6 7 . . . . 4 . 3 . . 1 Terminals 71 | . . 8 8 4 8 12 . 12 10 . . . . 4 3 2 . . . Fabricators 12 | . . . . . . . . . . . . . . 10 . 2 . . . Repair Stations 7 | . . . . . . . . 3 4 . . . . . . . . . . Recycling Units 2 | . . . . . . . . . . . . . . . . 2 . . . Scanalyzers . | . . . . . . . . . . . . . . . . . . . . Garrison Access 7 | . . . 1 . 1 . . 1 . . . . . 4 . . . . . Terminal Hacks 56 | . . 1 . 2 2 . . 2 6 . 8 30 . 3 1 . . . 1 Record 19 | . . . . . . . . . . . 7 11 . . . . . . 1 Part Schematic 12 | . . . . . . . . . . . . 12 . . . . . . . Robot Schematic 4 | . . . . . . . . . . . . 4 . . . . . . . Prototype ID Bank 3 | . . . . . . . . . . . . 3 . . . . . . . Open Door 2 | . . . . 1 . . . . . . 1 . . . . . . . . Branch Access Points 4 | . . 1 . . 1 . . . 1 . . . . 1 . . . . . Terminal Index 1 | . . . . . . . . . 1 . . . . . . . . . . Alert Level 5 | . . . . . 1 . . 1 2 . . . . 1 . . . . . Unreport Threat 3 | . . . . . . . . . 2 . . . . 1 . . . . . Hauler Manifests 1 | . . . . . . . . 1 . . . . . . . . . . . Garrison Registry 2 | . . . . 1 . . . . . . . . . . 1 . . . . Fabricator Hacks 7 | . . . . . . . . . . . . . . 6 . 1 . . . Load Schematic 5 | . . . . . . . . . . . . . . 4 . 1 . . . Build 2 | . . . . . . . . . . . . . . 2 . . . . . Repair Station Hacks 1 | . . . . . . . . 1 . . . . . . . . . . . Scan Component 1 | . . . . . . . . 1 . . . . . . . . . . . Recycling Unit Hacks 1 | . . . . . . . . . . . . . . . . 1 . . . Process 1 | . . . . . . . . . . . . . . . . 1 . . . Scanalyzer . | . . . . . . . . . . . . . . . . . . . . Garrison Access Hacks 4 | . . . 1 . 1 . . . . . . . . 2 . . . . . Unlock Access 4 | . . . 1 . 1 . . . . . . . . 2 . . . . . Unauthorized Hacks 5 | . . . . . . . . 1 1 . . . . 2 . 1 . . . Terminals 1 | . . . . . . . . 1 . . . . . . . . . . . Assimilate 1 | . . . . . . . . 1 . . . . . . . . . . . Fabricators 3 | . . . . . . . . . . . . . . 2 . 1 . . . Recompile 3 | . . . . . . . . . . . . . . 2 . 1 . . . Repair Stations 1 | . . . . . . . . . 1 . . . . . . . . . . Patch 1 | . . . . . . . . . 1 . . . . . . . . . . Recycling Units . | . . . . . . . . . . . . . . . . . . . . Scanalyzers . | . . . . . . . . . . . . . . . . . . . . Garrison Access . | . . . . . . . . . . . . . . . . . . . . Data Cores Recovered . | . . . . . . . . . . . . . . . . . . . . Used . | . . . . . . . . . . . . . . . . . . . . Hacking Detections 38 | . . 3 4 2 3 5 . 8 6 . . . . 4 1 2 . . . Full Trace Events 17 | . . 2 3 . 1 4 . 3 2 . . . . . 1 1 . . . Feedback Events 1 | . . . . . . . . 1 . . . . . . . . . . . Corruption 1 | . . . . . . . . 1 . . . . . . . . . . . Feedback Blocked . | . . . . . . . . . . . . . . . . . . . . Robot Schematics Acquired 4 | . . . . . . . . . . . . 4 . . . . . . . Robots Built . | . . . . . . . . . . . . . . . . . . . . Authchips . | . . . . . . . . . . . . . . . . . . . . Time . | . . . . . . . . . . . . . . . . . . . . Total Robot Build Rating . | . . . . . . . . . . . . . . . . . . . . Part Schematics Acquired 12 | . . . . . . . . . . . . 12 . . . . . . . Parts Built 2 | . . . . . . . . . . . . . . 2 . . . . . Authchips 2 | . . . . . . . . . . . . . . 2 . . . . . Time 338 | . . . . . . . . . . . . . . 338 . . . . . Total Part Build Rating 12 | . . . . . . . . . . . . . . 12 . . . . . Parts Repaired . | . . . . . . . . . . . . . . . . . . . . Time . | . . . . . . . . . . . . . . . . . . . . Parts Recycled . | . . . . . . . . . . . . . . . . . . . . Recycled Matter . | . . . . . . . . . . . . . . . . . . . . Retrieved Matter . | . . . . . . . . . . . . . . . . . . . . Retrieved Components . | . . . . . . . . . . . . . . . . . . . . Parts Scanalyzed . | . . . . . . . . . . . . . . . . . . . . Part Schematics Acquired . | . . . . . . . . . . . . . . . . . . . . Parts Damaged . | . . . . . . . . . . . . . . . . . . . . Bothacking | -11 -10 -9 -8 -8 -8 -7 -7 -7 -6 -6 -6 -6 -5 -5 -5 -5 -5 -5 -5 ------------ Run | Yrd Mat Mat Mat Gar Mat Fac Was Fac Fac Low Low Dat Pro Fac Gar Fac Upp Upp War Used RIF Installer . | . . . . . . . . . . . . . . . . . . . . Robots Hacked . | . . . . . . . . . . . . . . . . . . . . Non-combat . | . . . . . . . . . . . . . . . . . . . . Combat . | . . . . . . . . . . . . . . . . . . . . Robot Hacks Applied . | . . . . . . . . . . . . . . . . . . . . Relay Couplers Released 22 | . . . . 16 . . . . 3 . . . . . 3 . . . . Machine Destruction 19 | . . . . 16 . . . . . . . . . . 3 . . . . Programmers 3 | . . . . . . . . . 3 . . . . . . . . . . Fabnet Peak Effective % . | . . . . . . . . . . . . . . . . . . . . Robots Rewired 6 | . . . . 1 . . . . . . . . . . . . . . 5 Allies Hacked . | . . . . . . . . . . . . . . . . . . . . Hacks Repelled . | . . . . . . . . . . . . . . . . . . . . Allies | -11 -10 -9 -8 -8 -8 -7 -7 -7 -6 -6 -6 -6 -5 -5 -5 -5 -5 -5 -5 -------- Run | Yrd Mat Mat Mat Gar Mat Fac Was Fac Fac Low Low Dat Pro Fac Gar Fac Upp Upp War Total Allies 28 | . . . . 3 . . 19 1 . . . . . . . . . . 5 Largest Group 19 | . . . . 2 . . 19 1 . . . . . . . . . . 5 Highest-Rated Group 475 | . . . . 61 . . 475 10 . . . . . . . . . . 242 Highest-Rated Ally 68 | . . . . 39 . . 35 10 . . . . . . . . . . 68 Initial Warlord ECA Mod 112 | . . . . . 8 7 7 7 6 6 6 6 5 5 5 11 11 11 11 Total Orders 2 | . . . . . . . . . . . . . . . . . . . 2 STAY 1 | . . . . . . . . . . . . . . . . . . . 1 FOLLOW 1 | . . . . . . . . . . . . . . . . . . . 1 Ally Attacks 176 | . . . . 35 . . 90 . . . . . . . . . . . 51 Total Damage 5638 | . . . . 449 . . 2945 . . . . . . . . . . . 2244 Kills 32 | . . . . 7 . . 11 . . . . . . . . . . . 14 Allies Corrupted . | . . . . . . . . . . . . . . . . . . . . Allies Melted 1 | . . . . . . . . . . . . . . . . . . . 1 Intel | -11 -10 -9 -8 -8 -8 -7 -7 -7 -6 -6 -6 -6 -5 -5 -5 -5 -5 -5 -5 ------- Run | Yrd Mat Mat Mat Gar Mat Fac Was Fac Fac Low Low Dat Pro Fac Gar Fac Upp Upp War Active Infowar (turns) 6513 | . . . . . . 873 168 773 689 187 312 52 280 726 361 374 293 223 1202 Optics 959 | . . . . . . . . . . . . . . . . . . . 959 Sensors 2512 | . . . . . . 873 168 773 623 . . . . . . 75 . . . IFF 711 | . . . . . . . . . . . . . . . . . 250 223 238 Machine Analysis 4699 | . . . . . . . . . 689 187 312 52 280 726 361 374 293 223 1202 Robot Analysis Total . | . . . . . . . . . . . . . . . . . . . . Derelict Logs Recovered 7 | . . . . . . . . . . 1 3 . 1 . . . 1 1 . Drone Launches . | . . . . . . . . . . . . . . . . . . . . Drone Recoveries . | . . . . . . . . . . . . . . . . . . . . Exploration | -11 -10 -9 -8 -8 -8 -7 -7 -7 -6 -6 -6 -6 -5 -5 -5 -5 -5 -5 -5 ------------- Run | Yrd Mat Mat Mat Gar Mat Fac Was Fac Fac Low Low Dat Pro Fac Gar Fac Upp Upp War Turns Passed 10559 | 92 318 998 388 1580 381 881 168 841 689 187 312 52 280 726 531 417 293 223 1202 Spaces Moved 11430 | 56 150 405 158 1148 370 1202 242 1319 1007 309 553 93 451 827 419 585 508 295 1333 Core 8 | 8 . . . . . . . . . . . . . . . . . . . Treads 735 | 48 150 405 132 . . . . . . . . . . . . . . . . Legs . | . . . . . . . . . . . . . . . . . . . . Wheels 400 | . . . 26 109 5 . . . . . . . . . . . . 66 194 Hover 10287 | . . . . 1039 365 1202 242 1319 1007 309 553 93 451 827 419 585 508 229 1139 Flight . | . . . . . . . . . . . . . . . . . . . . Fastest Speed 31 | 50 160 160 110 71 71 63 63 54 54 56 56 56 56 42 31 39 40 40 35 Average Speed 69 | 148 160 207 175 100 74 63 63 55 54 56 56 56 56 49 56 47 43 65 57 Slowest Speed 240 | 160 160 240 240 225 211 68 63 63 129 56 56 56 56 56 217 103 51 115 210 Overloaded Moves 22 | . . . . . . . . . . . . . . . 14 . . . 8 Propulsion Burnouts . | . . . . . . . . . . . . . . . . . . . . Robots Hopped . | . . . . . . . . . . . . . . . . . . . . Potential Cave-ins 2 | . . . . . . . . . . . . . . . . . . . 2 Cave-ins Triggered . | . . . . . . . . . . . . . . . . . . . . Exploration Rate (%) 46 | 4 29 36 14 79 36 29 90 39 25 50 71 68 67 17 51 18 59 54 86 Regions Visited 19 Branch Regions 7 Pre-discovered Areas 4 | . . . . . . . . . . 2 1 1 . . . . . . . Known Exits Taken 11 | . . . 1 . . . . 1 1 1 1 1 1 1 . 1 1 1 . Unknown Exits Taken 4 | 1 1 1 . . 1 . . . . . . . . . . . . . . Scrap Searched 7 | . . . . . . . . . . 1 2 . 2 . . . 2 . . Spaces Dug 84 | . . 2 . 4 3 2 1 18 21 . . . 7 10 . 13 2 . 1 Terrain Destroyed 1445 | . . 16 5 260 67 56 15 146 95 85 . . 147 105 236 64 7 66 75 Melee 47 | . . 2 . . 3 2 1 5 12 . . . . 10 . 11 . . 1 Projectile 17 | . . . . . 4 . . . . . . . . . 2 3 7 1 . AOE 1381 | . . 14 5 260 60 54 14 141 83 85 . . 147 95 234 50 . 65 74 Terrain Rammed . | . . . . . . . . . . . . . . . . . . . . Walls Destroyed . | . . . . . . . . . . . . . . . . . . . . Machines Disabled . | . . . . . . . . . . . . . . . . . . . . Actions | -11 -10 -9 -8 -8 -8 -7 -7 -7 -6 -6 -6 -6 -5 -5 -5 -5 -5 -5 -5 --------- Run | Yrd Mat Mat Mat Gar Mat Fac Was Fac Fac Low Low Dat Pro Fac Gar Fac Upp Upp War Total 13321 | 62 187 488 216 1406 434 1293 254 1395 1086 315 554 92 462 1110 655 677 570 318 1747 Wait 808 | . . 10 1 11 7 11 2 11 . . . . . 232 148 8 52 1 314 Move 11413 | 55 149 404 158 1146 369 1202 241 1318 1007 308 552 92 450 827 417 584 507 294 1333 Hop . | . . . . . . . . . . . . . . . . . . . . Pick Up 134 | 2 7 10 8 25 4 14 1 10 5 1 2 . . 12 8 10 2 3 10 Fast Attach 83 | 5 2 3 2 14 1 9 3 5 9 . . . . 4 1 12 . . 13 Attach 55 | . . . 5 10 4 2 . . 4 1 . . 1 1 9 4 . 5 9 Detach 15 | . . . . 5 . 1 . . . . . . . . 1 2 . 2 4 Swap 104 | . 1 10 9 9 9 7 1 11 13 1 . . . 10 10 3 4 2 4 Drop 152 | . 1 10 6 15 16 22 4 18 11 . . . . 5 8 11 2 3 20 Fire 321 | . 27 38 26 100 19 10 1 6 12 4 . . 11 5 33 6 3 8 12 Melee 136 | . . 3 1 14 5 15 1 16 25 . . . . 14 14 23 . . 5 Ram 2 | . . . . . . . . . . . . . . . . 2 . . . Kick . | . . . . . . . . . . . . . . . . . . . . Crush . | . . . . . . . . . . . . . . . . . . . . Escape Stasis 54 | . . . . 36 . . . . . . . . . . 6 12 . . . Rewire 37 | . . . . 14 . . . . . . . . . . . . . . 23 Trap . | . . . . . . . . . . . . . . . . . . . . Miscellaneous 7 | . . . . 7 . . . . . . . . . . . . . . . Route ------- -11/Scrapyard -10/Materials -9/Materials (discovered 2 exits: *Mat / Min) -8/Materials -8/Garrison (discovered 3 exits: *Mat x3) -8/Materials (discovered 2 exits: *Fac / Gar) -7/Factory -7/Waste -7/Factory -6/Factory (discovered 4 exits: *Fac x2 / *Low x2) -6/Lower Caves -6/Lower Caves (discovered 2 exits: *Fac / *Dat) -6/Data Miner -5/Proximity Caves -5/Factory (discovered 7 exits: Fac x3 / *Upp x2 / Gar / Gar) -5/Garrison (discovered 3 exits: *Fac x3) -5/Factory -5/Upper Caves -5/Upper Caves -5/Warlord (discovered 1 exit: [*Pro]) History --------- Turn | Location | Event 8 | -11/Scrapyard | Discovered new exit (range 16) 93 | -11/Scrapyard | Entered Materials 300 | -10/Materials | Build established: Mutant 380 | -10/Materials | Discovered new exit (range 16) 411 | -10/Materials | Entered another Materials area 411 | -9/Materials | Evolved 2 slots: Utility x2 783 | -9/Materials | Identified exit to Mines 1244 | -9/Materials | Discovered new exit (range 3) 1409 | -9/Materials | Entered another Materials area 1409 | -8/Materials | Evolved 2 slots: Propulsion x2 1691 | -8/Materials | Garrison activated, responded to threat 1766 | -8/Materials | Lost 5 parts (2n1u2w) 1768 | -8/Materials | Destroyed 10 combat bots 1788 | -8/Materials | Identified exit to Garrison 1797 | -8/Materials | Entered Garrison 1840 | -8/Garrison | Lost 6 parts (1p3n2w) 2139 | -8/Garrison | Triggered checkpoint 2210 | -8/Garrison | Build established: Scavenger-Mutant 2246 | -8/Garrison | Garrison Relay disabled 2281 | -8/Garrison | Triggered checkpoint 2282 | -8/Garrison | Core integrity fell below 50% 2337 | -8/Garrison | Discovered new exit (range 24) 2337 | -8/Garrison | Discovered new exit (range 46) 2337 | -8/Garrison | Discovered new exit (range 66) 2355 | -8/Garrison | Rescued a captive Derelict 2357 | -8/Garrison | Rescued a captive Derelict 2375 | -8/Garrison | Garrison Relay disabled 2385 | -8/Garrison | Triggered checkpoint 2497 | -8/Garrison | Triggered checkpoint 2628 | -8/Garrison | Garrison Relay disabled 2635 | -8/Garrison | Garrison Relay disabled 2779 | -8/Garrison | Triggered checkpoint 3127 | -8/Garrison | Triggered checkpoint 3173 | -8/Garrison | Attempted to access garrison exit controls, blocked by remote lockdown 3377 | -8/Garrison | Entered Materials 3452 | -8/Materials | Identified exit to Garrison 3543 | -8/Materials | Core integrity fell below 20% 3590 | -8/Materials | Destroyed 11 combat bots 3753 | -8/Materials | Discovered new exit (range 8) 3758 | -8/Materials | Entered Factory 3758 | -7/Factory | Evolved 2 slots: Propulsion x1, Utility x1 4614 | -7/Factory | Destroyed 7 combat bots 4639 | -7/Factory | Manually triggered Chute Trap 4639 | -7/Factory | Sucked down chute 4639 | -7/Factory | Entered Waste 4654 | -7/Waste | EMP discharged 4674 | -7/Waste | Spotted C-40 Crusher 4701 | -7/Waste | Met Warlord forces unprepared to attack 4701 | -7/Waste | Spotted C-40 Crusher 4707 | -7/Waste | Allies destroyed C-40 Crusher 4749 | -7/Waste | Spotted C-40 Crusher 4749 | -7/Waste | Spotted C-40 Crusher 4752 | -7/Waste | Spotted C-40 Crusher 4754 | -7/Waste | EMP discharged 4754 | -7/Waste | System corruption reached 10% 4754 | -7/Waste | Spotted C-40 Crusher 4797 | -7/Waste | Discovered new exit (range 16) 4806 | -7/Waste | Lost 3 allies 4806 | -7/Waste | Identified exit to Factory 4807 | -7/Waste | Entered Factory 5607 | -7/Factory | First assault squad dispatched 5608 | -7/Factory | Discovered new exit (range 16) 5618 | -7/Factory | Identified exit to Factory 5648 | -7/Factory | Entered another Factory area 5648 | -6/Factory | Evolved 2 slots: Utility x2 5961 | -6/Factory | Build established: Scavenger-Scout 6160 | -6/Factory | Discovered new exit (range 4) 6162 | -6/Factory | Identified exit to Factory 6198 | -6/Factory | Discovered exit to Factory (range 15) 6303 | -6/Factory | Identified exit to Lower Caves 6337 | -6/Factory | Entered Lower Caves 6342 | -6/Lower Caves | Attracted the attention of an 0b10 checkpoint 6362 | -6/Lower Caves | Met a Warlord Commander 6363 | -6/Lower Caves | Learned location of Warlord (-5) 6364 | -6/Lower Caves | Warlord Commander delivered Encrypted Comm Array 6366 | -6/Lower Caves | Found Encrypted Comm Array 6501 | -6/Lower Caves | Discovered new exit (range 14) 6513 | -6/Lower Caves | Identified exit to Lower Caves 6524 | -6/Lower Caves | Entered another Lower Caves area 6528 | -6/Lower Caves | Discovered exit to Factory (range 11) 6537 | -6/Lower Caves | Learned 4 Factory zone layouts 6546 | -6/Lower Caves | Entered an active Warlord outpost 6570 | -6/Lower Caves | Learned Research trap positions 6570 | -6/Lower Caves | Learned Factory security intel 6570 | -6/Lower Caves | Learned Armory security intel 6570 | -6/Lower Caves | Learned Extension terminal intel 6586 | -6/Lower Caves | Build established: Scavenger-Mutant 6623 | -6/Lower Caves | Encountered a Warlord checkpoint 6631 | -6/Lower Caves | Learned Factory stockpile data 6827 | -6/Lower Caves | Discovered new exit (range 5) 6828 | -6/Lower Caves | Identified exit to Data Miner 6836 | -6/Lower Caves | Entered Data Miner 6836 | -6/Data Miner | Discovered new exit (range 6) 6847 | -6/Data Miner | Met Data Miner 6857 | -6/Data Miner | Learned location of Section 7 (-3) 6857 | -6/Data Miner | Acquired the access code to Warlord's prototype stash 6861 | -6/Data Miner | Received God Mode back door access code from Data Miner 6887 | -6/Data Miner | Identified exit to Proximity Caves 6888 | -6/Data Miner | Entered Proximity Caves 6995 | -5/Proximity Caves | Learned location of 1 exit from Factory 7136 | -5/Proximity Caves | Attracted the attention of an 0b10 checkpoint 7141 | -5/Proximity Caves | Spotter reported a threat 7160 | -5/Proximity Caves | Discovered exit to Factory (range 12) 7168 | -5/Proximity Caves | Entered Factory 7168 | -5/Factory | Evolved 2 slots: Propulsion x2 7169 | -5/Factory | Identified exit to Factory 7174 | -5/Factory | Identified exit to Garrison 7274 | -5/Factory | Identified exit to Upper Caves 7376 | -5/Factory | Incoming investigation squad redirected 7540 | -5/Factory | Fabricated Cld. Gravmag System? 7713 | -5/Factory | Fabricated Cld. Gravmag System (x1) 7894 | -5/Factory | Identified exit to Garrison 7894 | -5/Factory | Entered Garrison 7901 | -5/Garrison | Discovered new exit (range 85) 7901 | -5/Garrison | Discovered new exit (range 105) 7901 | -5/Garrison | Discovered new exit (range 47) 7917 | -5/Garrison | Garrison Relay disabled 7932 | -5/Garrison | Assembled breached garrison interior 8119 | -5/Garrison | Spotted B-75 Beast 8169 | -5/Garrison | Lost 3 parts (1p1u1w) 8203 | -5/Garrison | Build established: Hacker-Mutant 8272 | -5/Garrison | Identified exit to Factory 8273 | -5/Garrison | Attempted to access garrison exit controls, blocked by remote lockdown 8402 | -5/Garrison | Phase Generator disabled 8425 | -5/Garrison | Entered Factory 8441 | -5/Factory | Destroyed 10 combat bots 8603 | -5/Factory | System corruption reached 10% 8710 | -5/Factory | Core integrity fell below 50% 8725 | -5/Factory | First assault squad dispatched 8744 | -5/Factory | Incoming assault squad redirected 8787 | -5/Factory | Discovered exit to Upper Caves (range 15) 8842 | -5/Factory | Entered Upper Caves 8883 | -5/Upper Caves | Build established: Mutant 8897 | -5/Upper Caves | Spotted B-75 Beast 9098 | -5/Upper Caves | Discovered new exit (range 14) 9104 | -5/Upper Caves | Learned 12 Factory zone layouts 9134 | -5/Upper Caves | Identified exit to Upper Caves 9135 | -5/Upper Caves | Entered another Upper Caves area 9177 | -5/Upper Caves | Lost 3 parts (2n1w) 9214 | -5/Upper Caves | Encountered a Warlord checkpoint 9238 | -5/Upper Caves | Found Alien Artifact 9348 | -5/Upper Caves | Discovered new exit (range 11) 9357 | -5/Upper Caves | Identified exit to Warlord 9358 | -5/Upper Caves | Entered Warlord 9398 | -5/Warlord | System corruption cleaned by Quarantine Array 9575 | -5/Warlord | Opened Warlord's prototype stash 9599 | -5/Warlord | Found Prototype Device 9599 | -5/Warlord | Identified Thermal Barrier 9601 | -5/Warlord | Found Prototype Processor 9601 | -5/Warlord | Identified Spectral Analyzer 9620 | -5/Warlord | Found Prototype Reactor 9624 | -5/Warlord | Found Prototype Hackware 9755 | -5/Warlord | Warlord's base attacked by MAIN.C 9810 | -5/Warlord | Met Warlord 9877 | -5/Warlord | Build established: Hacker-Mutant 10072 | -5/Warlord | Destroyed 7 combat bots 10105 | -5/Warlord | Warlord forces counterattacked 10111 | -5/Warlord | Spotted B-86 Titan 10111 | -5/Warlord | Spotted B-75 Beast 10133 | -5/Warlord | Allies destroyed B-75 Beast 10430 | -5/Warlord | Warlord base infiltrated, sounded retreat 10464 | -5/Warlord | Lost 7 allies 10493 | -5/Warlord | Spotted Executioner 10497 | -5/Warlord | Spotted Striker 10502 | -5/Warlord | Found Prototype Launcher 10508 | -5/Warlord | Discovered new exit (range 23) 10541 | -5/Warlord | Found Prototype Device 10541 | -5/Warlord | Identified Exp. Shock Absorption System 10546 | -5/Warlord | Lost 4 allies 10555 | -5/Warlord | Spotted Striker 10555 | -5/Warlord | Spotted Executioner 10555 | -5/Warlord | Spotted Executioner 10558 | -5/Warlord | Core integrity fell below 20% 10560 | -5/Warlord | Destroyed by Executioner with Helical Railgun Last Messages --------------- 10555_ Cmb. Linear Gravjet blown off. 10555_ Cmb. Gravmag System blown off. 10555_ Cmb. Linear Gravjet blown off. 10555_ E-15 Imp knocked back. 10555_ Cld. Antigrav System blown off. 10555_ Lgt. Angular Momentum Engine blown off. 10556_ Slug penetrates Executioner. 10556_ G-67 Veteran suffers critical hit (Destroy). 10556_ G-67 Veteran destroyed. 10557_ Acquired Cld. Gravmag System. 10557_ Slayer 6a destroyed. 10557_ Enhanced Grunt knocked back. 10557_ Slug penetrates E-15 Imp. 10557_ Slug penetrates Enhanced Grunt. 10557_ Enhanced Grunt destroyed. 10559_ Knocked back. 10560_ Acquired 47 matter. 10560_ Plasma Lance destroyed. 10560_ Dropped Hcp. Storage Unit. 10560_ Slug penetrates Earth. Map ----- +----------------------------------------------------+ | | | | | | | | | | | | | | | ????????????????????????????????? | | ????????????????????????????????? | | ????????????????????????????????? | | ????????????????????????????????? | | ????????????????????????????????? | | ????????????????????????????????? | | ????????????????????????????????? | | ????????????????????????????????? | | ????????????????????????????????? | | ????????????????????????????????? | | ????????????????????????????????? | | ????????????????????????????????? | | ???????????????????????########## | | ?????????????????????### % bb## | | ????????# ??????###?#; =Kg ! | | ????????# ????# ;# !!*epgig% | | ????????# ??????#; !!!!*!eiElg | | ????????? ????### ]!%*!== pp | | ?????????? ????# ; !!]@%=! E## | | ???????????# ??###; !!!=[]####? | | ????????????# ??? # [ !!=!#=#??? | | ?????????????# !??#!#!*!%! #??? | | ?????????????#*!###!#[=[ =# ##??? | | ?????????????#!=====%[=[== ###?? | | ?????????????##%[=[!=%%![=[[ ##? | | ?????????????#"#**![![[=%#= #? | | ?????????????# ";==!*%=!## #? | | ?????????????## ;[=%%%%#? ##? | | ???????????#### #==[[[%#? #?? | | ??????????## #### =!!***#?# * ##? | | ####?######## # ###*=%!####% #? | | !"### ### # *=/=%%[%!#[ ##? | | =["""" # #=!!=[==** "#?? | | [%*![ *B[g[[%![=="##?? | | ! =%% % g %B%![!%!=! "#??? | | [ [=% % %= %!mdWm==%*% #??? | | =/%% %/=%%! %Mpsp!*![/" #??? | | ! %!% !/ *= # ##!%m%=%= # #??? | | ="" " ### =m!*# # "#?? | | % """%" # *="#### #?? | | "#### #### # #?? | | ####??###### # # #" ^#?# #?? | | ???????????####### ### #?? | +----------------------------------------------------+ Best States ------------- Heat Dissipation 59 Energy Generation 19 Energy Capacity 315 Matter Stores 300 Matter Capacity 300 Sight Range 24 Robot Scan Range 15 Terrain Scan Density 10 Armor Coverage 300 Resistance: KI 20 Resistance: TH 50 Propulsion Shielding 66 Melee Speed Boost 20 Evasion (%) 67 Targeting Accuracy 5 Launcher Accuracy 40 Core Analysis 6 Recoil Reduction 4 Offensive Hacking 28 Authchip Count 5 Item Schematics ----------------- Combat Drone Bay | -6/Data Miner | Free Cld. Gravmag System | -6/Data Miner | Free Imp. Energy Well | -6/Data Miner | Free Thunder Hammer | -6/Data Miner | Free Hvy. Siege Treads | -6/Data Miner | Free Adv. Coolant Injector | -6/Data Miner | Free Hardcell Cannon | -6/Data Miner | Free Arm. Medium Treads | -6/Data Miner | Free Imp. Point Defense System | -6/Data Miner | Free Biometal Medium Treads | -6/Data Miner | Free Adv. Force Field | -6/Data Miner | Free Lgt. Regenerative Plating | -6/Data Miner | Free Robot Schematics ------------------ Y-54 Guardian | -6/Data Miner | Free S-27 Virus | -6/Data Miner | Free L-41 Fighter | -6/Data Miner | Free B-48 Gladiator | -6/Data Miner | Free Fabricated ------------ Cld. Gravmag System | x1 | -5/Factory | Authchip Cld. Gravmag System | x1 | -5/Factory | Authchip Repaired ---------- Nothing Alien Tech Used ----------------- None Achievements -------------- None Challenges ------------ None Game ------ Seed LightpackFlightProtomatter Manual? 0 Play Time 01:58:00 Cumulative 356.7 hours Start 2025.07.27 @ 12:11:27 End 2025.07.27 @ 14:18:07 Sessions 1 Manual Loads 0 Difficulty Rogue Special Mode None Game No. 338 Rogue 302 Adventurer 36 Explorer 0 Win Type - Total 14 Types 6/0/8/0/0/0/0/0/0/0 Lore% 71 Gallery% 84 Achievement% 75 Wizard Run 0 Options --------- Layout 0 ASCII 0 Keyboard 0 Movement Mouse Keybinds 0 Fullscreen 1 Font 18/SmallcapsGlow Map View 76x50 Zoom Use 0% Tactical HUD 1 Map Filters NONE Filters SHIFT_HUE(315) Steam 1 RUN: a3fad469-4931-438e-ab77-a6ed6cc82eab